fUST/lending_fUST_20260515
["ID","MTS","AMOUNT","RATE_DAILY","PERIOD"]
[422345038,1778856643000,-51256.21,0.00011232,2]
[422344996,1778856643000,-500.0,0.00011232,2]
[422344998,1778856643000,-500.0,0.00011232,2]
[422344948,1778856643000,-3138.32,0.00011232,2]
[422344957,1778856643000,-500.0,0.00011232,2]
[422344961,1778856643000,-1789.87,0.00011232,2]
[422344959,1778856643000,-500.0,0.00011232,2]
[422344952,1778856643000,-1120.56,0.00011232,2]
[422344963,1778856643000,-500.0,0.00011232,2]
[422344955,1778856643000,-2775.96,0.00011232,2]
[422344953,1778856643000,-500.0,0.00011232,2]
[422344966,1778856643000,-500.0,0.00011232,2]
[422344965,1778856643000,-1939.84,0.00011232,2]
[422344968,1778856643000,-500.0,0.00011232,2]
[422344950,1778856643000,-1906.43,0.00011232,2]
[422344972,1778856643000,-3368.68,0.00011232,2]
[422344994,1778856643000,-8097.67,0.00011232,2]
[422344970,1778856643000,-2502.92,0.00011232,2]
[422344992,1778856643000,-7635.86,0.00011232,2]
[422344989,1778856643000,-500.0,0.00011232,2]
[422344991,1778856643000,-500.0,0.00011232,2]
[422344974,1778856643000,-500.0,0.00011232,2]
[422344976,1778856643000,-656.5,0.00011232,2]
[422344978,1778856643000,-2868.36,0.00011232,2]
[422344983,1778856643000,-4215.8742,0.00011232,2]
[422344987,1778856643000,-467.97287276,0.00011232,2]
[422344981,1778856643000,-10182.0,0.00011232,2]
[422344985,1778856643000,-3842.56,0.00011232,2]
[422345119,1778856644000,-5503.44,0.000115,2]
[422345123,1778856644000,-500.0,0.00011505,2]
[422345127,1778856644000,-569.3,0.00011506,2]
[422345116,1778856644000,-211.2423,0.00011369,2]
[422345114,1778856644000,-183.78,0.00011354,2]
[422345112,1778856644000,-500.0,0.00011232,2]
[422345125,1778856644000,-500.0,0.00011506,2]
[422345136,1778856644000,-547.66,0.00011506,2]
[422345140,1778856644000,-1593.81,0.00011506,2]
[422345131,1778856644000,-555.26,0.00011506,2]
[422345146,1778856644000,-525.24,0.00011506,2]
[422345143,1778856644000,-938.48,0.00011506,2]
[422345134,1778856644000,-637.98,0.00011506,2]
[422345121,1778856644000,-200.0,0.000115,7]
[422345151,1778856644000,-500.0,0.00011506,2]
[422345129,1778856644000,-500.0,0.00011506,2]
[422345109,1778856644000,-3228.75,0.00011232,2]
[422345077,1778856644000,-937.93,0.00011232,2]
[422345107,1778856644000,-1361.76,0.00011232,2]
[422345153,1778856644000,-500.0,0.00011506,2]
[422345065,1778856644000,-1952.96,0.00011232,2]
[422345070,1778856644000,-500.0,0.00011232,2]
[422345067,1778856644000,-500.0,0.00011232,2]
[422345072,1778856644000,-500.0,0.00011232,2]
[422345075,1778856644000,-500.0,0.00011232,2]
[422345089,1778856644000,-527.13,0.00011232,2]
[422345099,1778856644000,-500.0,0.00011232,2]
[422345087,1778856644000,-2900.75,0.00011232,2]
[422345082,1778856644000,-500.0,0.00011232,2]
[422345080,1778856644000,-668.74,0.00011232,2]
[422345091,1778856644000,-500.0,0.00011232,2]
[422345094,1778856644000,-781.37,0.00011232,2]
[422345102,1778856644000,-500.0,0.00011232,2]
[422345105,1778856644000,-500.0,0.00011232,2]
[422345097,1778856644000,-2518.24,0.00011232,2]
[422345085,1778856644000,-1212.97,0.00011232,2]
[422345155,1778856644000,-605.84,0.00011506,2]
[422345163,1778856644000,-500.0,0.00011506,2]
[422345235,1778856644000,-500.0,0.00011506,2]
[422345209,1778856644000,-500.0,0.00011506,2]
[422345207,1778856644000,-500.0,0.00011506,2]
[422345214,1778856644000,-1725.25,0.00011506,2]
[422345219,1778856644000,-873.2,0.00011506,2]
[422345226,1778856644000,-500.0,0.00011506,2]
[422345229,1778856644000,-605.81,0.00011506,2]
[422345231,1778856644000,-500.0,0.00011506,2]
[422345212,1778856644000,-500.0,0.00011506,2]
[422345222,1778856644000,-500.0,0.00011506,2]
[422345233,1778856644000,-500.0,0.00011506,2]
[422345238,1778856644000,-601.05,0.00011506,2]
[422345240,1778856644000,-500.0,0.00011506,2]
[422345242,1778856644000,-500.0,0.00011506,2]
[422345244,1778856644000,-500.96300675,0.00011506,2]
[422345246,1778856644000,-500.0,0.00011506,2]
[422345160,1778856644000,-500.0,0.00011506,2]
[422345224,1778856644000,-1646.4,0.00011506,2]
[422345205,1778856644000,-500.0,0.00011506,2]
[422345217,1778856644000,-500.0,0.00011506,2]
[422345200,1778856644000,-500.0,0.00011506,2]
[422345148,1778856644000,-500.0,0.00011506,2]
[422345158,1778856644000,-735.58,0.00011506,2]
[422345166,1778856644000,-500.0,0.00011506,2]
[422345176,1778856644000,-500.0,0.00011506,2]
[422345202,1778856644000,-535.33,0.00011506,2]
[422345168,1778856644000,-500.0,0.00011506,2]
[422345171,1778856644000,-500.0,0.00011506,2]
[422345178,1778856644000,-595.51,0.00011506,2]
[422345173,1778856644000,-867.61,0.00011506,2]
[422345183,1778856644000,-500.0,0.00011506,2]
[422345193,1778856644000,-701.25,0.00011506,2]
[422345197,1778856644000,-1513.45,0.00011506,2]
[422345185,1778856644000,-565.79,0.00011506,2]
[422345195,1778856644000,-500.0,0.00011506,2]
[422345191,1778856644000,-500.0,0.00011506,2]
[422345180,1778856644000,-500.0,0.00011506,2]
[422345188,1778856644000,-629.99,0.00011506,2]
[422345327,1778856645000,-916.67,0.00011506,2]
[422345323,1778856645000,-3393.43,0.00011506,2]
[422345315,1778856645000,-500.0,0.00011506,2]
[422345322,1778856645000,-500.0,0.00011506,2]
[422345325,1778856645000,-500.0,0.00011506,2]
[422345319,1778856645000,-296.04757665,0.00011506,2]
[422345311,1778856645000,-700.3,0.00011506,2]
[422345313,1778856645000,-500.0,0.00011506,2]
[422345340,1778856645000,-736.84,0.00011506,2]
[422345309,1778856645000,-872.45,0.00011506,2]
[422345317,1778856645000,-522.86,0.00011506,2]
[422345343,1778856645000,-541.19,0.00011506,2]
[422345359,1778856645000,-765.09,0.00011506,2]
[422345329,1778856645000,-500.0,0.00011506,2]
[422345346,1778856645000,-1089.64,0.00011506,2]
[422345347,1778856645000,-500.0,0.00011506,2]
[422345334,1778856645000,-841.12,0.00011506,2]
[422345349,1778856645000,-679.36,0.00011506,2]
[422345338,1778856645000,-1714.01,0.00011506,2]
[422345331,1778856645000,-799.36,0.00011506,2]
[422345351,1778856645000,-603.85,0.00011506,2]
[422345336,1778856645000,-1111.93,0.00011506,2]
[422345355,1778856645000,-500.0,0.00011506,2]
[422345357,1778856645000,-727.74,0.00011506,2]
[422345372,1778856645000,-548.39,0.00011506,2]
[422345307,1778856645000,-802.9,0.00011506,2]
[422345342,1778856645000,-504.58,0.00011506,2]
[422345292,1778856645000,-1283.85,0.00011506,2]
[422345271,1778856645000,-500.0,0.00011506,2]
[422345288,1778856645000,-500.0,0.00011506,2]
[422345251,1778856645000,-732.42,0.00011506,2]
[422345252,1778856645000,-500.0,0.00011506,2]
[422345248,1778856645000,-1226.53,0.00011506,2]
[422345255,1778856645000,-2272.29,0.00011506,2]
[422345257,1778856645000,-500.0,0.00011506,2]
[422345261,1778856645000,-500.0,0.00011506,2]
[422345259,1778856645000,-500.0,0.00011506,2]
[422345265,1778856645000,-500.0,0.00011506,2]
[422345267,1778856645000,-500.0,0.00011506,2]
[422345263,1778856645000,-500.0,0.00011506,2]
[422345269,1778856645000,-567.12,0.00011506,2]
[422345283,1778856645000,-324.25175193,0.00011506,2]
[422345277,1778856645000,-500.0,0.00011506,2]
[422345279,1778856645000,-755.85,0.00011506,2]
[422345275,1778856645000,-500.0,0.00011506,2]
[422345281,1778856645000,-500.0,0.00011506,2]
[422345273,1778856645000,-612.78,0.00011506,2]
[422345301,1778856645000,-500.0,0.00011506,2]
[422345303,1778856645000,-720.96,0.00011506,2]
[422345287,1778856645000,-858.19,0.00011506,2]
[422345284,1778856645000,-1159.74,0.00011506,2]
[422345296,1778856645000,-3314.27,0.00011506,2]
[422345290,1778856645000,-500.0,0.00011506,2]
[422345294,1778856645000,-500.0,0.00011506,2]
[422345306,1778856645000,-500.0,0.00011506,2]
[422345299,1778856645000,-1788.22,0.00011506,2]
[422345361,1778856645000,-500.0,0.00011506,2]
[422345430,1778856645000,-500.0,0.00011506,2]
[422345362,1778856645000,-2165.17,0.00011506,2]
[422345428,1778856645000,-500.0,0.00011506,2]
[422345438,1778856645000,-500.0,0.00011506,2]
[422345439,1778856645000,-3466.87,0.00011506,2]
[422345434,1778856645000,-500.0,0.00011506,2]
[422345432,1778856645000,-500.0,0.00011506,2]
[422345441,1778856645000,-500.0,0.00011506,2]
[422345443,1778856645000,-500.0,0.00011506,2]
[422345436,1778856645000,-4452.99,0.00011506,2]
[422345445,1778856645000,-7472.83,0.00011506,2]
[422345447,1778856645000,-500.0,0.00011506,2]
[422345449,1778856645000,-1226.7,0.00011506,2]
[422345457,1778856645000,-513.25,0.00011506,2]
[422345451,1778856645000,-4225.95,0.00011506,2]
[422345462,1778856645000,-2166.52,0.00011506,2]
[422345453,1778856645000,-2031.88,0.00011506,2]
[422345461,1778856645000,-500.0,0.00011506,2]
[422345459,1778856645000,-500.0,0.00011506,2]
[422345455,1778856645000,-986.86,0.00011506,2]
[422345465,1778856645000,-486.40376422,0.00011506,2]
[422345467,1778856645000,-7535.53,0.00011506,2]
[422345469,1778856645000,-500.0,0.00011506,2]
[422345471,1778856645000,-500.0,0.00011506,2]
[422345476,1778856645000,-831.37,0.00011506,2]
[422345353,1778856645000,-500.0,0.00011506,2]
[422345472,1778856645000,-1879.06,0.00011506,2]
[422345426,1778856645000,-8059.15,0.00011506,2]
[422345423,1778856645000,-500.0,0.00011506,2]
[422345474,1778856645000,-699.5,0.00011506,2]
[422345421,1778856645000,-805.44,0.00011506,2]
[422345418,1778856645000,-1482.71,0.00011506,2]
[422345367,1778856645000,-623.58,0.00011506,2]
[422345369,1778856645000,-1090.31,0.00011506,2]
[422345374,1778856645000,-1281.36,0.00011506,2]
[422345365,1778856645000,-1539.57,0.00011506,2]
[422345376,1778856645000,-500.0,0.00011506,2]
[422345378,1778856645000,-3603.1,0.00011506,2]
[422345384,1778856645000,-500.0,0.00011506,2]
[422345382,1778856645000,-500.0,0.00011506,2]
[422345380,1778856645000,-669.31,0.00011506,2]
[422345386,1778856645000,-500.0,0.00011506,2]
[422345389,1778856645000,-500.0,0.00011506,2]
[422345390,1778856645000,-500.0,0.00011506,2]
[422345370,1778856645000,-591.87,0.00011506,2]
[422345392,1778856645000,-500.0,0.00011506,2]
[422345407,1778856645000,-3864.89,0.00011506,2]
[422345409,1778856645000,-1249.56,0.00011506,2]
[422345416,1778856645000,-1290.87,0.00011506,2]
[422345395,1778856645000,-501.10097245,0.00011506,2]
[422345415,1778856645000,-500.0,0.00011506,2]
[422345405,1778856645000,-941.39,0.00011506,2]
[422345412,1778856645000,-531.85,0.00011506,2]
[422345403,1778856645000,-500.0,0.00011506,2]
[422345401,1778856645000,-500.0,0.00011506,2]
[422345397,1778856645000,-500.0,0.00011506,2]
[422345399,1778856645000,-500.0,0.00011506,2]
[422345411,1778856645000,-623.76,0.00011506,2]
[422345552,1778856646000,-750.37,0.00011506,2]
[422345542,1778856646000,-2502.92,0.00011506,2]
[422345556,1778856646000,-3842.56,0.00011506,2]
[422345558,1778856646000,-4215.8742,0.00011506,2]
[422345534,1778856646000,-504.2274674,0.00011506,2]
[422345550,1778856646000,-2868.36,0.00011506,2]
[422345538,1778856646000,-500.0,0.00011506,2]
[422345536,1778856646000,-1939.84,0.00011506,2]
[422345540,1778856646000,-500.0,0.00011506,2]
[422345554,1778856646000,-10182.0,0.00011506,2]
[422345548,1778856646000,-656.5,0.00011506,2]
[422345566,1778856646000,-500.0,0.00011506,2]
[422345546,1778856646000,-503.31331126,0.00011506,2]
[422345562,1778856646000,-7635.86,0.00011506,2]
[422345560,1778856646000,-646.13552496,0.00011506,2]
[422345574,1778856646000,-1297.67,0.00011506,2]
[422345576,1778856646000,-544.78,0.00011506,2]
[422345564,1778856646000,-8097.67,0.00011506,2]
[422345580,1778856646000,-500.0,0.00011506,2]
[422345578,1778856646000,-6813.12,0.00011506,2]
[422345568,1778856646000,-500.0,0.00011506,2]
[422345570,1778856646000,-3171.86,0.00011506,2]
[422345530,1778856646000,-500.0,0.00011506,2]
[422345544,1778856646000,-3368.68,0.00011506,2]
[422345532,1778856646000,-1789.87,0.00011506,2]
[422345504,1778856646000,-631.78,0.00011506,2]
[422345528,1778856646000,-2775.96,0.00011506,2]
[422345482,1778856646000,-4719.32,0.00011506,2]
[422345488,1778856646000,-858.86,0.00011506,2]
[422345484,1778856646000,-500.0,0.00011506,2]
[422345486,1778856646000,-3423.16,0.00011506,2]
[422345478,1778856646000,-500.0,0.00011506,2]
[422345480,1778856646000,-500.0,0.00011506,2]
[422345492,1778856646000,-500.0,0.00011506,2]
[422345490,1778856646000,-651.4,0.00011506,2]
[422345494,1778856646000,-2003.41,0.00011506,2]
[422345496,1778856646000,-3980.29,0.00011506,2]
[422345498,1778856646000,-925.65,0.00011506,2]
[422345582,1778856646000,-500.0,0.00011506,2]
[422345500,1778856646000,-784.87,0.00011506,2]
[422345506,1778856646000,-2075.74,0.00011506,2]
[422345508,1778856646000,-639.38,0.00011506,2]
[422345512,1778856646000,-500.0,0.00011506,2]
[422345510,1778856646000,-500.0,0.00011506,2]
[422345516,1778856646000,-997.45,0.00011506,2]
[422345514,1778856646000,-500.0,0.00011506,2]
[422345520,1778856646000,-3138.32,0.00011506,2]
[422345518,1778856646000,-500.0,0.00011506,2]
[422345524,1778856646000,-1120.56,0.00011506,2]
[422345522,1778856646000,-1906.43,0.00011506,2]
[422345526,1778856646000,-500.0,0.00011506,2]
[422345502,1778856646000,-609.77,0.00011506,2]
[422345572,1778856646000,-724.99,0.00011506,2]
[422345647,1778856646000,-500.0,0.00011506,2]
[422345584,1778856646000,-500.0,0.00011506,2]
[422345641,1778856646000,-2518.24,0.00011506,2]
[422345637,1778856646000,-500.0,0.00011506,2]
[422345645,1778856646000,-500.0,0.00011506,2]
[422345643,1778856646000,-500.0,0.00011506,2]
[422345653,1778856646000,-1361.76,0.00011506,2]
[422345639,1778856646000,-781.37,0.00011506,2]
[422345655,1778856646000,-421.80891401,0.00011507,3]
[422345657,1778856646000,-3329.89,0.00011507,2]
[422345659,1778856646000,-1564.0,0.00011507,2]
[422345672,1778856646000,-1901.0,0.000116,2]
[422345661,1778856646000,-1564.0,0.00011508,2]
[422345651,1778856646000,-500.0,0.00011506,2]
[422345663,1778856646000,-3223.97231228,0.00011521,2]
[422345674,1778856646000,-349376.83295545,0.000116,2]
[422345666,1778856646000,-170.37,0.00011551,2]
[422345680,1778856646000,-20000.0,0.000117,30]
[422345679,1778856646000,-171.45,0.00011645,2]
[422345668,1778856646000,-171.68,0.0001156,2]
[422345678,1778856646000,-961.13804971,0.00011644,2]
[422345670,1778856646000,-1680.0,0.0001158,2]
[422345676,1778856646000,-168.63825434,0.00011644,30]
[422345681,1778856646000,-420.0,0.00011705,2]
[422345683,1778856646000,-497.64828871,0.00011755,2]
[422345682,1778856646000,-420.0,0.00011705,2]
[422345665,1778856646000,-1523.033094,0.00011546,2]
[422345649,1778856646000,-3228.75,0.00011506,2]
[422345586,1778856646000,-500.0,0.00011506,2]
[422345632,1778856646000,-1212.97,0.00011506,2]
[422345636,1778856646000,-527.13,0.00011506,2]
[422345598,1778856646000,-51256.21,0.00011506,2]
[422345601,1778856646000,-501.5,0.00011506,2]
[422345605,1778856646000,-500.0,0.00011506,2]
[422345599,1778856646000,-671.37,0.00011506,2]
[422345603,1778856646000,-560.31,0.00011506,2]
[422345607,1778856646000,-10491.53,0.00011506,2]
[422345596,1778856646000,-1901.61,0.00011506,2]
[422345592,1778856646000,-3002.37,0.00011506,2]
[422345609,1778856646000,-4570.97,0.00011506,2]
[422345590,1778856646000,-500.0,0.00011506,2]
[422345594,1778856646000,-500.0,0.00011506,2]
[422345588,1778856646000,-697.62,0.00011506,2]
[422345611,1778856646000,-500.0,0.00011506,2]
[422345615,1778856646000,-500.0,0.00011506,2]
[422345621,1778856646000,-500.0,0.00011506,2]
[422345617,1778856646000,-1952.96,0.00011506,2]
[422345619,1778856646000,-500.0,0.00011506,2]
[422345623,1778856646000,-500.0,0.00011506,2]
[422345626,1778856646000,-937.93,0.00011506,2]
[422345624,1778856646000,-500.0,0.00011506,2]
[422345630,1778856646000,-500.0,0.00011506,2]
[422345634,1778856646000,-2900.75,0.00011506,2]
[422345628,1778856646000,-668.74,0.00011506,2]
[422345613,1778856646000,-4441.58,0.00011506,2]
[422345716,1778856647000,-500.0,0.0001178,2]
[422345718,1778856647000,-1725.25,0.0001178,2]
[422345717,1778856647000,-500.0,0.0001178,2]
[422345711,1778856647000,-701.25,0.0001178,2]
[422345715,1778856647000,-512.52880082,0.0001178,2]
[422345719,1778856647000,-500.0,0.0001178,2]
[422345714,1778856647000,-535.33,0.0001178,2]
[422345713,1778856647000,-1513.45,0.0001178,2]
[422345712,1778856647000,-500.0,0.0001178,2]
[422345720,1778856647000,-873.2,0.0001178,2]
[422345724,1778856647000,-500.0,0.0001178,2]
[422345723,1778856647000,-605.81,0.0001178,2]
[422345722,1778856647000,-500.0,0.0001178,2]
[422345732,1778856647000,-732.42,0.0001178,2]
[422345733,1778856647000,-500.0,0.0001178,2]
[422345727,1778856647000,-601.05,0.0001178,2]
[422345729,1778856647000,-500.0,0.0001178,2]
[422345726,1778856647000,-500.0,0.0001178,2]
[422345731,1778856647000,-1226.53,0.0001178,2]
[422345725,1778856647000,-500.0,0.0001178,2]
[422345706,1778856647000,-595.51,0.0001178,2]
[422345721,1778856647000,-1646.4,0.0001178,2]
[422345701,1778856647000,-500.0,0.0001178,2]
[422345690,1778856647000,-555.26,0.0001178,2]
[422345704,1778856647000,-867.61,0.0001178,2]
[422345687,1778856647000,-500.0,0.0001178,2]
[422345684,1778856647000,-1548.43847589,0.00011755,2]
[422345689,1778856647000,-500.0,0.0001178,2]
[422345691,1778856647000,-637.98,0.0001178,2]
[422345695,1778856647000,-525.24,0.0001178,2]
[422345693,1778856647000,-1593.81,0.0001178,2]
[422345696,1778856647000,-500.0,0.0001178,2]
[422345686,1778856647000,-3756.0271,0.0001178,2]
[422345692,1778856647000,-547.66,0.0001178,2]
[422345694,1778856647000,-938.48,0.0001178,2]
[422345700,1778856647000,-500.0,0.0001178,2]
[422345688,1778856647000,-569.3,0.0001178,2]
[422345698,1778856647000,-605.84,0.0001178,2]
[422345709,1778856647000,-565.79,0.0001178,2]
[422345710,1778856647000,-629.99,0.0001178,2]
[422345708,1778856647000,-500.0,0.0001178,2]
[422345697,1778856647000,-500.0,0.0001178,2]
[422345702,1778856647000,-500.0,0.0001178,2]
[422345699,1778856647000,-735.58,0.0001178,2]
[422345707,1778856647000,-500.0,0.0001178,2]
[422345705,1778856647000,-500.0,0.0001178,2]
[422345703,1778856647000,-500.0,0.0001178,2]
[422345728,1778856647000,-500.0,0.0001178,2]
[422345730,1778856647000,-500.0,0.0001178,2]
[422345685,1778856647000,-1023.0433823,0.00011755,2]
[422345734,1778856647000,-2272.29,0.0001178,2]
[422345776,1778856647000,-841.12,0.0001178,2]
[422345769,1778856647000,-522.86,0.0001178,2]
[422345770,1778856647000,-500.0,0.0001178,2]
[422345771,1778856647000,-3393.43,0.0001178,2]
[422345772,1778856647000,-500.0,0.0001178,2]
[422345766,1778856647000,-700.3,0.0001178,2]
[422345773,1778856647000,-916.67,0.0001178,2]
[422345767,1778856647000,-500.0,0.0001178,2]
[422345768,1778856647000,-500.0,0.0001178,2]
[422345774,1778856647000,-500.0,0.0001178,2]
[422345777,1778856647000,-1111.93,0.0001178,2]
[422345779,1778856647000,-736.84,0.0001178,2]
[422345781,1778856647000,-541.19,0.0001178,2]
[422345778,1778856647000,-1714.01,0.0001178,2]
[422345789,1778856647000,-500.0,0.0001178,2]
[422345784,1778856647000,-603.85,0.0001178,2]
[422345782,1778856647000,-1089.64,0.0001178,2]
[422345786,1778856647000,-500.0,0.0001178,2]
[422345788,1778856647000,-765.09,0.0001178,2]
[422345787,1778856647000,-727.74,0.0001178,2]
[422345783,1778856647000,-679.36,0.0001178,2]
[422345735,1778856647000,-500.0,0.0001178,2]
[422345780,1778856647000,-504.58,0.0001178,2]
[422345775,1778856647000,-799.36,0.0001178,2]
[422345785,1778856647000,-500.0,0.0001178,2]
[422345752,1778856647000,-500.0,0.0001178,2]
[422345765,1778856647000,-872.45,0.0001178,2]
[422345746,1778856647000,-500.0,0.0001178,2]
[422345747,1778856647000,-755.85,0.0001178,2]
[422345737,1778856647000,-500.0,0.0001178,2]
[422345736,1778856647000,-500.0,0.0001178,2]
[422345739,1778856647000,-500.0,0.0001178,2]
[422345738,1778856647000,-500.0,0.0001178,2]
[422345743,1778856647000,-500.0,0.0001178,2]
[422345740,1778856647000,-500.0,0.0001178,2]
[422345744,1778856647000,-612.78,0.0001178,2]
[422345742,1778856647000,-567.12,0.0001178,2]
[422345745,1778856647000,-500.0,0.0001178,2]
[422345759,1778856647000,-500.0,0.0001178,2]
[422345749,1778856647000,-1159.74,0.0001178,2]
[422345753,1778856647000,-1283.85,0.0001178,2]
[422345754,1778856647000,-500.0,0.0001178,2]
[422345756,1778856647000,-1788.22,0.0001178,2]
[422345748,1778856647000,-500.0,0.0001178,2]
[422345763,1778856647000,-802.9,0.0001178,2]
[422345757,1778856647000,-3314.27,0.0001178,2]
[422345760,1778856647000,-720.96,0.0001178,2]
[422345761,1778856647000,-500.0,0.0001178,2]
[422345751,1778856647000,-500.0,0.0001178,2]
[422345750,1778856647000,-858.19,0.0001178,2]
[422345812,1778856648000,-531.85,0.0001178,2]
[422345814,1778856648000,-1290.87,0.0001178,2]
[422345822,1778856648000,-85.67309203,0.0001178,2]
[422345809,1778856648000,-3864.89,0.0001178,2]
[422345813,1778856648000,-500.0,0.0001178,2]
[422345818,1778856648000,-8059.15,0.0001178,2]
[422345817,1778856648000,-500.0,0.0001178,2]
[422345820,1778856648000,-500.0,0.0001178,2]
[422345826,1778856648000,-3466.87,0.0001178,2]
[422345823,1778856648000,-500.0,0.0001178,2]
[422345828,1778856648000,-7472.83,0.0001178,2]
[422345819,1778856648000,-500.0,0.0001178,2]
[422345827,1778856648000,-500.0,0.0001178,2]
[422345824,1778856648000,-4452.99,0.0001178,2]
[422345825,1778856648000,-500.0,0.0001178,2]
[422345829,1778856648000,-500.0,0.0001178,2]
[422345811,1778856648000,-623.76,0.0001178,2]
[422345833,1778856648000,-2031.88,0.0001178,2]
[422345821,1778856648000,-414.32690797,0.0001178,2]
[422345810,1778856648000,-1249.56,0.0001178,2]
[422345797,1778856648000,-500.0,0.0001178,2]
[422345808,1778856648000,-941.39,0.0001178,2]
[422345831,1778856648000,-2389.68404387,0.0001178,2]
[422345790,1778856648000,-2165.17,0.0001178,2]
[422345792,1778856648000,-623.58,0.0001178,2]
[422345794,1778856648000,-591.87,0.0001178,2]
[422345791,1778856648000,-1539.57,0.0001178,2]
[422345802,1778856648000,-500.0,0.0001178,2]
[422345803,1778856648000,-500.0,0.0001178,2]
[422345793,1778856648000,-1090.31,0.0001178,2]
[422345795,1778856648000,-548.39,0.0001178,2]
[422345796,1778856648000,-1281.36,0.0001178,2]
[422345799,1778856648000,-669.31,0.0001178,2]
[422345798,1778856648000,-3603.1,0.0001178,2]
[422345800,1778856648000,-500.0,0.0001178,2]
[422345801,1778856648000,-500.0,0.0001178,2]
[422345804,1778856648000,-500.0,0.0001178,2]
[422345806,1778856648000,-500.0,0.0001178,2]
[422345816,1778856648000,-805.44,0.0001178,2]
[422345815,1778856648000,-1482.71,0.0001178,2]
[422345805,1778856648000,-500.0,0.0001178,2]
[422345807,1778856648000,-500.0,0.0001178,2]
[422345830,1778856648000,-1226.7,0.0001178,2]
[422345836,1778856648000,-500.0,0.0001178,2]
[422345834,1778856648000,-986.86,0.0001178,2]
[422345864,1778856648000,-2075.74,0.0001178,2]
[422345867,1778856648000,-255.5699159,0.0001178,2]
[422345865,1778856648000,-639.38,0.0001178,2]
[422345870,1778856648000,-3138.32,0.0001178,2]
[422345868,1778856648000,-997.45,0.0001178,2]
[422345869,1778856648000,-500.0,0.0001178,2]
[422345866,1778856648000,-500.0,0.0001178,2]
[422345871,1778856648000,-1906.43,0.0001178,2]
[422345874,1778856648000,-2775.96,0.0001178,2]
[422345873,1778856648000,-500.0,0.0001178,2]
[422345877,1778856648000,-1939.84,0.0001178,2]
[422345875,1778856648000,-500.0,0.0001178,2]
[422345879,1778856648000,-500.0,0.0001178,2]
[422345880,1778856648000,-1317.80062648,0.0001178,2]
[422345878,1778856648000,-500.0,0.0001178,2]
[422345835,1778856648000,-513.25,0.0001178,2]
[422345881,1778856648000,-852.11955396,0.000109,2]
[422345883,1778856648000,-22173.1540852,0.000109,2]
[422345882,1778856648000,-2333.18114726,0.000109,2]
[422345863,1778856648000,-631.78,0.0001178,2]
[422345861,1778856648000,-784.87,0.0001178,2]
[422345876,1778856648000,-1789.87,0.0001178,2]
[422345872,1778856648000,-1120.56,0.0001178,2]
[422345832,1778856648000,-1836.26595613,0.0001178,2]
[422345839,1778856648000,-500.0,0.0001178,2]
[422345838,1778856648000,-7535.53,0.0001178,2]
[422345837,1778856648000,-2166.52,0.0001178,2]